{"text_format":"3","workbook":"xlsx","n_sheets":4,"sheets":["Mrs. Tyler","Ms. Allison","Ms. Katie","Comparison"],"not_rendered":{"charts":12},"read":"whole","date_system":"1900"}

{"sheet":"Mrs. Tyler","index":0,"n_rows":16,"n_cols":8,"rows_kept":16,"merged":[[0,0,0,7]]}
["Mrs. Tyler's Class"]
[null,"Fiction","Non-Fiction","FolkTale","Fable","Fantsy","Realistic Fiction","Daily Total"]
["Monday"]
["Tuesday"]
["Wednesday"]
["Thursday"]
["Friday"]
["Totals From Week 1"]
["Monday"]
["Tuesday"]
["Wednesday"]
["Thursday"]
["Friday"]
["Totals From Week 2"]
[{"$nulls":6},"Total Books Donated",{"$f":"SUM(H8,H14)","v":0}]
[{"$nulls":6},"Weekly Average",{"$f":"AVERAGE(B8:G8)","v":{"$error":"#DIV/0!"}}]

{"sheet":"Ms. Allison","index":1,"n_rows":16,"n_cols":8,"rows_kept":16,"merged":[[0,0,0,7]]}
["Ms. Allison's Class"]
[null,"Fiction","Non-Fiction","FolkTale","Fable","Fantsy","Realistic Fiction","Daily Total"]
["Monday"]
["Tuesday"]
["Wednesday"]
["Thursday"]
["Friday"]
["Totals From Week 1"]
["Monday"]
["Tuesday"]
["Wednesday"]
["Thursday"]
["Friday"]
["Totals From Week 2"]
[{"$nulls":6},"Total Books Donated",{"$f":"SUM(H8,H14)","v":0}]
[{"$nulls":6},"Weekly Average",{"$f":"AVERAGE(B8:G8)","v":{"$error":"#DIV/0!"}}]

{"sheet":"Ms. Katie","index":2,"n_rows":16,"n_cols":8,"rows_kept":16,"merged":[[0,0,0,7]]}
["Ms. Katie's Class"]
[null,"Fiction","Non-Fiction","FolkTale","Fable","Fantsy","Realistic Fiction","Daily Total"]
["Monday"]
["Tuesday"]
["Wednesday"]
["Thursday"]
["Friday"]
["Totals From Week 1"]
["Monday"]
["Tuesday"]
["Wednesday"]
["Thursday"]
["Friday"]
["Totals From Week 2"]
[{"$nulls":6},"Total Books Donated",{"$f":"SUM(H8,H14)","v":0}]
[{"$nulls":6},"Weekly Average",{"$f":"AVERAGE(B8:G8)","v":{"$error":"#DIV/0!"}}]

{"sheet":"Comparison","index":3,"n_rows":7,"n_cols":5,"rows_kept":7,"merged":[[1,0,1,4]]}
[]
["Total Books Donated In All The Kindergarten Classes"]
[null,"Week 1 Total","Week 2 Total","Total Books Donated","Weekly Average of Book Per Day "]
["Mrs. Tyler's Class",{"$f":"'Mrs. Tyler'!$H$8","v":0},{"$f":"'Mrs. Tyler'!H14","v":0},{"$f":"'Mrs. Tyler'!H15","v":0},{"$f":"'Mrs. Tyler'!H16","v":{"$error":"#DIV/0!"}}]
["Ms. Allison's Class",{"$f":"'Ms. Allison'!H8","v":0},{"$f":"'Ms. Allison'!H14","v":0},{"$f":"'Ms. Allison'!H15","v":0},{"$f":"'Ms. Allison'!H16","v":{"$error":"#DIV/0!"}}]
["Ms. Katie's Class",{"$f":"'Ms. Katie'!H8","v":0},{"$f":"'Ms. Katie'!H14","v":0},{"$f":"'Ms. Katie'!H15","v":0},{"$f":"'Ms. Katie'!H16","v":{"$error":"#DIV/0!"}}]
["Total:",{"$f":"SUM(B4:B6)","v":0},{"$f":"SUM(C4:C6)","v":0},{"$f":"SUM(D4:D6)","v":0}]